[Event "HUN-ch U8-U18 2019"]
[Site "Balatonlelle"]
[Date "2019.06.26"]
[Round "8.21"]
[White "Kolimar, Kristof Pal"]
[Black "Herczeg, Marcell"]
[Result "1-0"]
[ECO "A14"]
[WhiteElo "1979"]
[BlackElo "1783"]
[Annotator "NA RC"]
[PlyCount "93"]
[EventDate "2019.06.21"]
[EventType "swiss"]
[EventCountry "HUN"]
[SourceTitle "playchess.com"]
[Source "ChessBase"]
[SourceQuality "1"]
[TimeControl "40/5400+30:1800+30"]

1. Nf3 {[%emt 0:00:03]} d5 {[%emt 0:00:54]} 2. c4 {[%emt 0:00:39]} e6 {[%emt 0:01:45]} 3. g3 {[%emt 0:00:40]} Nf6 {[%emt 0:01:31]} 4. Bg2 {[%emt 0:00:09]} Be7 {[%emt 0:00:52]} 5. O-O {[%emt 0:00:12]} O-O {[%emt 0:00:49]} 6. d4 {[%emt 0:00:09]} dxc4 {[%emt 0:00:58]} 7. Qc2 {[%emt 0:00:39]} a6 {[%emt 0:01:02]} 8. a4 {[%emt 0:00:46]} Bd7 {[%emt 0:00:57]} 9. Qxc4 {[%emt 0:02:03]} Bc6 {[%emt 0:02:02]} 10. Bg5 {[%emt 0:05:37]} Nbd7 {[%emt 0:03:29]} 11. Nc3 {[%emt 0:03:03]} h6 {[%emt 0:11:11]} 12. Bf4 {[%emt 0:03:16]} Nb6 {[%emt 0:10:25]} 13. Qd3 {[%emt 0:03:04]} Nbd5 {[%emt 0:02:21]} 14. Be5 {[%emt 0:05:54]} Qd7 {[%emt 0:14:26]} 15. Bxf6 {[%emt 0:08:41]} Bxf6 {[%emt 0:01:25]} 16. Ne4 {[%emt 0:02:01]} Qe7 {[%emt 0:02:13]} 17. Nxf6+ {[%emt 0:07:21]} Nxf6 {[%emt 0:00:38]} 18. Ne5 {[%emt 0:01:05]} Bxg2 {[%emt 0:00:36]} 19. Kxg2 {[%emt 0:00:17]} Rfd8 {[%emt 0:01:06]} 20. Rac1 {[%emt 0:01:59]} Rac8 {[%emt 0:02:17]} 21. Qb3 {[%emt 0:05:14]} c6 {[%emt 0:06:06]} 22. Rfd1 {[%emt 0:03:35]} Rc7 {[%emt 0:10:28]} 23. Qb6 {[%emt 0:13:54]} Rdc8 {[%emt 0:02:23]} 24. Qc5 {[%emt 0:01:57]} Qd8 {[%emt 0:02:24]} 25. Nc4 {[%emt 0:08:23]} Qd5+ {[%emt 0:01:01]} 26. f3 {[%emt 0:00:19]} Nd7 {[%emt 0:03:12]} 27. Qa3 {[%emt 0:02:04]} Rd8 {[%emt 0:03:17]} 28. e4 {[%emt 0:02:50]} Qg5 {[%emt 0:00:30]} 29. h4 {[%emt 0:01:32]} Qg6 {[%emt 0:01:41]} 30. a5 {[%emt 0:02:37]} Nf6 {[%emt 0:00:42]} 31. Ne5 {[%emt 0:00:30]} Qh7 {[%emt 0:00:42]} 32. Qc5 {[%emt 0:01:21]} Ne8 {[%emt 0:02:06]} 33. h5 {[%emt 0:00:57]} Nf6 {[%emt 0:02:54]} 34. g4 {[%emt 0:00:47]} Kh8 {[%emt 0:04:29]} 35. Qb6 {[%emt 0:01:45]} Rdc8 {[%emt 0:01:05]} 36. d5 {[%emt 0:01:10]} Nd7 {[%emt 0:01:39]} 37. Nxd7 {[%emt 0:00:32]} Rxd7 {[%emt 0:00:09]} 38. dxc6 {[%emt 0:00:47]} Rxd1 {[%emt 0:00:14]} 39. Rxd1 {[%emt 0:00:08]} bxc6 {[%emt 0:00:19]} 40. Qxa6 {[%emt 0:00:00]} Qg8 {[%emt 0:00:00]} 41. b4 {[%emt 0:04:44]} Qe8 {[%emt 0:00:42]} 42. Qb6 {[%emt 0:04:49]} Qe7 {[%emt 0:01:13]} 43. a6 {[%emt 0:03:22]} Rc7 {[%emt 0:00:34]} 44. Qb8+ {[%emt 0:00:58]} Kh7 {[%emt 0:00:07]} 45. Rd8 {[%emt 0:00:28]} g6 {[%emt 0:00:51]} 46. Rh8+ {[%emt 0:00:32]} Kg7 {[%emt 0:00:05]} 47. e5 {[%emt 0:00:11]} 1-0

[Event "HUN-ch U8-U18 2019"]
[Site "Balatonlelle"]
[Date "2019.06.27"]
[Round "8.22"]
[White "Karacsonyi, Kata"]
[Black "Buri, Petra Zsuzsanna"]
[Result "1-0"]
[ECO "B11"]
[WhiteElo "1798"]
[BlackElo "1634"]
[Annotator "NA RC"]
[PlyCount "49"]
[EventDate "2019.06.21"]
[EventType "swiss"]
[EventCountry "HUN"]
[SourceTitle "playchess.com"]
[Source "ChessBase"]
[SourceQuality "1"]
[TimeControl "40/5400+30:1800+30"]

1. e4 {[%emt 0:00:03]} c6 {[%emt 0:00:29]} 2. Nc3 {[%emt 0:02:28]} d5 {[%emt 0:01:22]} 3. Nf3 {[%emt 0:00:21]} Bg4 {[%emt 0:01:02]} 4. h3 {[%emt 0:00:52]} Bxf3 {[%emt 0:00:44]} 5. Qxf3 {[%emt 0:01:05]} Nf6 {[%emt 0:01:02]} 6. e5 {[%emt 0:08:58]} Nfd7 {[%emt 0:06:37]} 7. d4 {[%emt 0:03:29]} e6 {[%emt 0:01:23]} 8. Ne2 {[%emt 0:10:15]} c5 {[%emt 0:07:47]} 9. c3 {[%emt 0:13:17]} Nc6 {[%emt 0:04:16]} 10. Qe3 {[%emt 0:06:10]} Rc8 {[%emt 0:07:33]} 11. a3 {[%emt 0:06:41]} Na5 {[%emt 0:07:35]} 12. f4 {[%emt 0:10:08]} Qb6 {[%emt 0:10:02]} 13. Rb1 {[%emt 0:06:47]} Qb3 {[%emt 0:10:54]} 14. Qd3 {[%emt 0:10:52]} Nc4 {[%emt 0:17:21]} 15. Qd1 {[%emt 0:03:16]} Qa2 {[%emt 0:01:12]} 16. Bd2 {[%emt 0:03:24]} cxd4 {[%emt 0:02:27]} 17. Nxd4 {[%emt 0:01:47]} Nxd2 {[%emt 0:00:51]} 18. Kxd2 {[%emt 0:01:37]} Bc5 {[%emt 0:10:03]} 19. Kc2 {[%emt 0:03:37]} Bxd4 {[%emt 0:03:57]} 20. Qxd4 {[%emt 0:00:39]} Nc5 {[%emt 0:00:36]} 21. Qb4 {[%emt 0:02:05]} a5 {[%emt 0:00:37]} 22. Qb5+ {[%emt 0:00:41]} Kf8 {[%emt 0:00:45]} 23. Qxa5 {[%emt 0:01:57]} d4 {[%emt 0:01:00]} 24. Qb4 {[%emt 0:00:39]} dxc3 {[%emt 0:00:44]} 25. Bc4 {[%emt 0:00:23]} 1-0

[Event "HUN-ch U8-U18 2019"]
[Site "Balatonlelle"]
[Date "2019.06.26"]
[Round "8.22"]
[White "Toth, Gergely"]
[Black "Bodrogi, Bendeguz"]
[Result "0-1"]
[ECO "B32"]
[WhiteElo "1485"]
[BlackElo "1925"]
[Annotator "NA RC"]
[PlyCount "84"]
[EventDate "2019.06.21"]
[EventType "swiss"]
[EventCountry "HUN"]
[SourceTitle "playchess.com"]
[Source "ChessBase"]
[SourceQuality "1"]
[TimeControl "40/5400+30:1800+30"]

1. e4 {[%emt 0:00:03]} c5 {[%emt 0:00:16]} 2. Nf3 {[%emt 0:00:10]} Nc6 {[%emt 0:00:32]} 3. d4 {[%emt 0:00:09]} cxd4 {[%emt 0:00:33]} 4. Nxd4 {[%emt 0:00:13]} e5 {[%emt 0:00:57]} 5. Nb5 {[%emt 0:00:17]} d6 {[%emt 0:01:09]} 6. N1c3 {[%emt 0:01:16]} a6 {[%emt 0:01:34]} 7. Na3 {[%emt 0:01:09]} Be7 {[%emt 0:01:02]} 8. Be3 {[%emt 0:04:40]} Nf6 {[%emt 0:04:54]} 9. f3 Be6 {[%emt 0:02:46]} 10. Bc4 {[%emt 0:13:26]} b5 {[%emt 0:05:23]} 11. Bd5 {[%emt 0:04:55]} Rc8 {[%emt 0:00:17]} 12. Bxc6+ {[%emt 0:00:48]} Rxc6 {[%emt 0:00:02]} 13. Nd5 {[%emt 0:00:17]} Bxd5 {[%emt 0:07:37]} 14. exd5 {[%emt 0:01:12]} Rc8 {[%emt 0:00:47]} 15. c3 {[%emt 0:05:10]} O-O {[%emt 0:01:02]} 16. O-O {[%emt 0:00:36]} Nd7 {[%emt 0:00:27]} 17. Nc2 f5 {[%emt 0:08:28]} 18. Nb4 {[%emt 0:04:08]} Bg5 {[%emt 0:16:52]} 19. Qe2 {[%emt 0:06:49]} Bxe3+ {[%emt 0:00:26]} 20. Qxe3 {[%emt 0:00:10]} Nc5 {[%emt 0:00:29]} 21. Nc6 {[%emt 0:01:46]} Qf6 {[%emt 0:01:32]} 22. Rad1 {[%emt 0:01:10]} f4 {[%emt 0:17:01]} 23. Qe2 {[%emt 0:02:36]} Rce8 {[%emt 0:02:12]} 24. b4 {[%emt 0:06:15]} Na4 {[%emt 0:00:31]} 25. Qc2 {[%emt 0:00:10]} Nb6 {[%emt 0:00:15]} 26. Na5 {[%emt 0:01:56]} Rc8 {[%emt 0:00:28]} 27. Qd2 {[%emt 0:06:16]} Rf7 {[%emt 0:05:42]} 28. Rc1 {[%emt 0:03:03]} Rfc7 {[%emt 0:00:21]} 29. Rfe1 {[%emt 0:01:12]} Qf7 {[%emt 0:00:23]} 30. Red1 {[%emt 0:01:14]} g5 {[%emt 0:03:32]} 31. g4 Nc4 {[%emt 0:02:40]} 32. Nxc4 {[%emt 0:06:14]} Rxc4 {[%emt 0:00:01]} 33. Qc2 {[%emt 0:05:16]} Kg7 {[%emt 0:03:07]} 34. Qd3 {[%emt 0:04:40]} Qg6 {[%emt 0:01:05]} 35. Kf2 {[%emt 0:06:23]} Qxd3 {[%emt 0:00:50]} 36. Rxd3 {[%emt 0:00:07]} Rxb4 {[%emt 0:00:01]} 37. cxb4 {[%emt 0:01:40]} Rxc1 {[%emt 0:00:07]} 38. a3 {[%emt 0:00:21]} Rc2+ {[%emt 0:00:23]} 39. Kg1 {[%emt 0:00:18]} Kf6 {[%emt 0:00:23]} 40. h3 {[%emt 0:00:00]} e4 {[%emt 0:00:00]} 41. fxe4 {[%emt 0:01:35]} Ke5 {[%emt 0:00:11]} 42. Kh1 {[%emt 0:01:36]} Kxe4 {[%emt 0:00:08]} 0-1

[Event "HUN-ch U8-U18 2019"]
[Site "Balatonlelle"]
[Date "2019.06.26"]
[Round "8.23"]
[White "Gergely, Daniel"]
[Black "Megyaszai, Balazs"]
[Result "0-1"]
[ECO "D00"]
[WhiteElo "1427"]
[BlackElo "1905"]
[Annotator "NA RC"]
[PlyCount "98"]
[EventDate "2019.06.21"]
[EventType "swiss"]
[EventCountry "HUN"]
[SourceTitle "playchess.com"]
[Source "ChessBase"]
[SourceQuality "1"]
[TimeControl "40/5400+30:1800+30"]

1. d4 {[%emt 0:00:02]} d5 {[%emt 0:00:42]} 2. Bf4 {[%emt 0:00:17]} Nf6 {[%emt 0:01:00]} 3. e3 {[%emt 0:00:16]} c5 {[%emt 0:03:53]} 4. c3 {[%emt 0:00:44]} Nc6 {[%emt 0:09:02]} 5. Nf3 {[%emt 0:01:18]} Qb6 {[%emt 0:02:39]} 6. Qc2 {[%emt 0:01:03]} Bf5 {[%emt 0:05:10]} 7. dxc5 {[%emt 0:00:46]} Bxc2 {[%emt 0:00:55]} 8. cxb6 {[%emt 0:00:20]} Bxb1 {[%emt 0:02:08]} 9. Rxb1 {[%emt 0:00:17]} axb6 {[%emt 0:00:58]} 10. a3 {[%emt 0:01:00]} e6 {[%emt 0:04:56]} 11. Bb5 {[%emt 0:01:40]} Nd7 {[%emt 0:16:46]} 12. O-O {[%emt 0:05:05]} Be7 {[%emt 0:06:27]} 13. Nd4 {[%emt 0:07:29]} Na7 {[%emt 0:06:57]} 14. Bxd7+ {[%emt 0:02:07]} Kxd7 {[%emt 0:00:50]} 15. Bg3 {[%emt 0:01:19]} Nc6 {[%emt 0:01:51]} 16. f4 {[%emt 0:01:14]} g6 {[%emt 0:08:35]} 17. Rbe1 {[%emt 0:05:29]} Rhd8 {[%emt 0:02:53]} 18. Rf2 {[%emt 0:02:05]} Ke8 {[%emt 0:01:18]} 19. Rfe2 {[%emt 0:04:03]} Bf6 {[%emt 0:01:47]} 20. Bf2 {[%emt 0:05:52]} Ra4 {[%emt 0:01:19]} 21. Kh1 {[%emt 0:01:35]} Kf8 {[%emt 0:01:25]} 22. Rd2 {[%emt 0:00:31]} Kg7 {[%emt 0:02:20]} 23. Rg1 {[%emt 0:04:52]} h5 {[%emt 0:03:51]} 24. g4 {[%emt 0:01:59]} hxg4 {[%emt 0:03:39]} 25. Rxg4 {[%emt 0:00:12]} Bxd4 {[%emt 0:01:22]} 26. exd4 {[%emt 0:00:21]} Rc8 {[%emt 0:01:21]} 27. Bg3 {[%emt 0:01:23]} Ne7 {[%emt 0:00:43]} 28. h4 {[%emt 0:01:58]} Rh8 {[%emt 0:02:50]} 29. Rh2 {[%emt 0:00:33]} Raa8 {[%emt 0:02:12]} 30. h5 {[%emt 0:00:53]} Nf5 {[%emt 0:00:38]} 31. Bf2 {[%emt 0:00:30]} Rag8 {[%emt 0:00:47]} 32. hxg6 {[%emt 0:00:38]} fxg6 {[%emt 0:00:34]} 33. Rxh8 {[%emt 0:00:31]} Rxh8+ {[%emt 0:00:24]} 34. Kg2 {[%emt 0:00:09]} b5 {[%emt 0:00:35]} 35. Rg5 {[%emt 0:01:16]} Rh7 {[%emt 0:00:32]} 36. Rg4 {[%emt 0:00:23]} Rh8 {[%emt 0:00:34]} 37. Rg5 {[%emt 0:00:11]} Kf7 {[%emt 0:00:25]} 38. Rg4 {[%emt 0:00:45]} Rh7 {[%emt 0:00:28]} 39. Rg5 {[%emt 0:00:29]} Kg7 {[%emt 0:00:15]} 40. Rg4 {[%emt 0:00:00]} Rh8 {[%emt 0:00:00]} 41. Rg5 {[%emt 0:08:54]} Kf6 {[%emt 0:00:00]} 42. Rg4 {[%emt 0:03:28]} Rh7 {[%emt 0:00:00]} 43. Rg5 {[%emt 0:01:04]} Nd6 {[%emt 0:00:00]} 44. Be3 {[%emt 0:00:58]} Ne4 {[%emt 0:00:00]} 45. Rg4 {[%emt 0:00:41]} Kf5 {[%emt 0:00:00]} 46. Rg5+ {[%emt 0:01:14]} Nxg5 {[%emt 0:00:00]} 47. fxg5 {[%emt 0:00:09]} Kg4 {[%emt 0:00:00]} 48. Bd2 {[%emt 0:00:12]} Rh3 {[%emt 0:00:00]} 49. Bc1 {[%emt 0:00:28]} Rd3 0-1